bitfinex-derivatives/quotes_ETHF0:USTF0_20251028
["timestamp","ask_amount","ask_price","bid_price","bid_amount"]
[1761652033567,0.3579,4118.5,4118.4,0.6141]
[1761652033859,2.1747,4118.4,4118.3,2.152]
[1761652034157,2.77090086,4118.4,4118.3,2.152]
[1761652034550,2.77324954,4118.4,4118.3,2.15460758]
[1761652034855,2.77324954,4118.4,4118.3,0.61670758]
[1761652036059,2.77324954,4118.4,4118.3,1.53480758]
[1761652037357,2.17704868,4118.4,4118.3,1.53480758]
[1761652037658,2.17704868,4118.4,4118.3,0.61670758]
[1761652037859,2.7717992,4118.4,4118.3,0.61670758]
[1761652038357,2.17704868,4118.4,4118.3,1.53480758]
[1761652038559,2.77154201,4118.4,4118.3,1.53480758]
[1761652039461,2.17704868,4118.4,4118.3,1.53480758]
[1761652039958,2.17704868,4118.4,4118.3,2.15460758]
[1761652040459,2.77116138,4118.4,4118.3,0.61670758]
[1761652040761,2.17704868,4118.4,4118.3,0.61670758]
[1761652041461,2.17704868,4118.4,4118.3,1.53480758]
[1761652042253,2.17704868,4118.4,4118.3,0.00260758]
[1761652042858,2.24984868,4118.4,4118.3,0.00260758]
[1761652043057,2.84364947,4118.4,4118.3,0.00260758]
[1761652043353,2.77084947,4118.4,4118.3,0.00260758]
[1761652043561,2.84364947,4118.4,4118.3,0.00260758]
[1761652043960,1.2774,4117.9,4117.8,0.02428481]
[1761652044166,2.76850079,4117.9,4117.8,0.02428481]
[1761652044359,2.2475,4117.9,4117.8,0.02428481]
[1761652044862,2.1747,4117.9,4117.8,0.02428481]
[1761652045062,2.1747,4117.9,4117.8,0.02619385]
[1761652046861,2.2475,4117.9,4117.8,0.02619385]
[1761652047361,2.1747,4117.9,4117.8,0.02619385]
[1761652048155,2.1747,4117.9,4117.8,0.64029385]
[1761652048356,2.1747,4117.9,4117.8,0.02619385]
[1761652048558,2.2475,4117.9,4117.8,0.02619385]
[1761652049463,2.84218877,4117.9,4117.8,0.02619385]
[1761652049767,2.84218877,4117.9,4116.8,0.9181]
[1761652049768,2.1747,4116.9,4116.8,2.152]
[1761652049960,2.1747,4116.9,4116.8,2.58927]
[1761652050659,2.1747,4116.9,4116.8,2.59099749]
[1761652051367,2.1747,4116.9,4116.8,2.15372749]
[1761652051967,2.1747,4116.9,4116.8,0.61582749]
[1761652052167,2.1747,4116.9,4116.8,0.00172749]
[1761652054872,2.2475,4116.9,4116.8,0.00172749]
[1761652055273,2.1747,4116.9,4116.8,0.00172749]
[1761652055772,2.1747,4116.9,4114.5,0.376]
[1761652055773,0.8852,4116.8,4114.5,0.376]
[1761652055969,1.5146,4115.0,4114.9,0.5654]
[1761652056475,1.5146,4115.0,4114.9,0.56712749]
[1761652056667,2.3998,4115.0,4114.9,0.00172749]
[1761652056867,2.40154356,4115.0,4114.9,0.00400223]
[1761652057564,2.47434356,4115.0,4114.9,0.00227474]
[1761652057762,2.40154356,4115.0,4114.9,0.00400223]
[1761652058370,1.4378,4114.1,4114.0,1.82536]
[1761652058572,1.4378,4114.1,4114.0,2.42786]
[1761652059165,2.047,4114.1,4114.0,2.42786]
[1761652059475,1.5146,4114.5,4114.3,0.43753]
[1761652059772,0.35454356,4115.0,4114.0,0.00230298]
[1761652059773,0.00174356,4115.0,4114.9,2.42777]
[1761652060168,0.00174356,4115.0,4114.9,2.50057]
[1761652060676,0.00174356,4115.0,4114.9,2.42777]
[1761652061174,0.00174356,4115.0,4114.9,2.50057]
[1761652061568,2.047,4116.2,4116.1,0.8224]
[1761652061777,2.3998,4116.0,4115.9,0.5654]
[1761652062078,2.3998,4116.0,4115.9,2.42766]
[1761652062383,1.4378,4116.3,4116.2,2.42763]
[1761652062680,2.06310691,4116.3,4116.2,1.9903]
[1761652063469,0.00189975,4116.3,4116.2,2.0631]
[1761652068074,0.00189975,4116.3,4116.2,10.0631]
[1761652068270,0.00189975,4116.3,4116.2,2.0631]
[1761652069181,0.00189975,4116.3,4116.2,1.9903]
[1761652069575,0.88709975,4116.3,4116.2,1.9903]
[1761652071779,0.00189975,4116.3,4116.2,1.9903]
[1761652072177,0.00189975,4116.3,4116.2,2.0631]
[1761652073584,0.8852,4116.9,4116.8,2.42757]
[1761652073774,1.51619845,4116.9,4116.8,2.42757]
[1761652074286,1.51619845,4116.9,4116.8,2.50037]
[1761652074483,1.51833473,4116.9,4116.8,2.42757]
[1761652074679,1.51833473,4116.9,4116.8,2.50037]
[1761652074874,1.95559473,4116.9,4116.8,2.42757]
[1761652075075,2.50819473,4116.9,4116.8,2.42757]
[1761652075780,2.07093473,4116.9,4116.8,2.42757]
[1761652075985,2.50819473,4116.9,4116.8,2.42757]
[1761652076481,2.07093473,4116.9,4116.8,2.42757]
[1761652076687,2.50819473,4116.9,4116.8,2.42757]
[1761652076884,3.11739473,4116.9,4116.8,2.42757]
[1761652077780,2.68013473,4116.9,4116.8,2.42757]
[1761652080690,3.11739473,4116.9,4116.8,2.42757]
[1761652082487,3.11739473,4116.9,4116.8,1.60517]
[1761652082689,3.11774353,4116.9,4116.8,1.60517]
[1761652084386,3.11774353,4116.9,4116.7,4.33528]
[1761652084387,2.27387,4116.8,4116.7,4.33528]
[1761652084586,2.27387,4116.8,4116.7,4.4322]
[1761652084587,2.90521725,4116.8,4116.7,4.4322]
[1761652085691,2.90521725,4116.8,4116.7,4.86948]
[1761652087289,2.90521725,4116.8,4116.7,0.97148]
[1761652087891,1.2155,4116.6,4116.5,0.43729]
[1761652088096,2.25181,4116.4,4116.3,3.898]
[1761652088287,2.88315725,4116.4,4116.3,3.898]
[1761652088686,2.88315725,4116.4,4116.3,4.86233]
[1761652089093,2.88315725,4116.4,4116.3,4.425]
[1761652089296,2.88315725,4116.4,4116.3,3.898]
[1761652090795,2.88315725,4116.4,4116.3,4.33533]
[1761652091586,1.93124725,4116.4,4116.3,6.08643]
[1761652091792,1.40954725,4116.4,4116.3,6.08643]
[1761652091988,2.44584725,4116.4,4116.3,6.15923]
[1761652092196,2.44584725,4116.4,4116.3,4.86233]
[1761652092396,2.88315725,4116.4,4116.3,4.86233]
[1761652093091,2.44584725,4116.4,4116.3,2.18843]
[1761652093292,1.93124725,4116.4,4116.3,2.18843]
[1761652093692,2.44584725,4116.4,4116.3,1.45423]
[1761652093995,2.44584725,4116.4,4116.3,0.96433]
[1761652094194,2.88315725,4116.4,4116.3,0.96433]
[1761652094789,2.88315725,4116.4,4116.3,0.527]
[1761652094989,2.88315725,4116.4,4116.3,0.96432]
[1761652095386,1.21553,4116.2,4116.1,0.43734]
[1761652095591,2.88317725,4116.2,4116.1,0.96434]
[1761652096093,2.44584725,4116.2,4116.1,2.18844]
[1761652098200,0.63134725,4116.2,4116.1,2.26124]
[1761652098502,1.41047186,4116.4,4116.3,2.18842]
[1761652099106,2.36948186,4116.4,4116.3,2.18842]
[1761652099292,1.93217186,4116.4,4116.3,2.18842]
[1761652099692,0.63227186,4116.4,4116.3,2.26122]
[1761652100095,2.44677186,4116.4,4116.3,2.18842]
[1761652101891,2.88408186,4116.4,4116.3,1.45422]
[1761652102300,2.88408186,4116.4,4116.3,2.18842]
[1761652102499,2.88408186,4116.4,4116.3,1.45422]
[1761652103901,2.88408186,4116.4,4116.3,2.18842]
[1761652105002,2.44677186,4116.4,4116.3,2.18842]
[1761652105602,2.44677186,4116.4,4116.3,0.43732]
[1761652106403,2.44677186,4116.4,4116.3,0.96432]
[1761652106602,2.88408186,4116.4,4116.3,0.96432]
[1761652107905,2.88408186,4116.4,4116.3,0.527]
[1761652108300,2.88408186,4116.4,4116.3,0.96432]
[1761652109508,2.25181,4116.4,4116.3,0.96432]
[1761652109805,2.87530717,4116.4,4116.3,0.96432]
[1761652110808,2.87530717,4116.4,4116.3,0.43732]
[1761652112009,2.87530717,4116.4,4116.3,0.96432]
[1761652112408,2.87530717,4116.4,4116.3,0.43732]
[1761652112610,2.94810717,4116.4,4116.3,0.43732]
[1761652112812,2.87530717,4116.4,4116.3,0.43732]
[1761652114307,2.87530717,4116.4,4116.3,0.96432]
[1761652115213,2.87530717,4116.4,4116.3,0.43732]
[1761652115807,2.87530717,4116.4,4116.3,0.89712]
[1761652119918,1.41183,4116.3,4116.2,0.43733]
[1761652120118,2.03532717,4116.3,4116.2,0.43733]
[1761652120414,1.9394,4116.0,4115.9,0.9518]
[1761652120619,2.56289717,4116.0,4115.9,0.9518]
[1761652121618,2.56289717,4116.0,4115.9,1.38917]
[1761652122220,2.56289717,4116.0,4115.9,0.89717]
[1761652122422,3.00025717,4116.0,4115.9,0.89717]
[1761652122720,2.56289717,4116.0,4115.9,0.89717]
[1761652123420,2.56289717,4116.0,4115.9,2.08417]
[1761652123914,0.62349717,4116.0,4115.9,2.08417]
[1761652124124,0.2941,4116.5,4116.2,2.08413]
[1761652124125,1.80440962,4116.3,4116.2,2.08413]
[1761652124513,2.29350962,4116.3,4116.2,2.08413]
[1761652125828,2.29350962,4116.3,4116.2,1.38913]
[1761652126020,2.73082962,4116.3,4116.2,0.89713]
[1761652126215,2.73082962,4116.3,4116.0,3.898]
[1761652126216,0.43735,4116.1,4116.0,3.898]
[1761652126419,2.73085962,4116.1,4116.0,4.33536]
[1761652127227,2.29350962,4116.1,4116.0,4.33536]
[1761652127427,2.29350962,4116.1,4116.0,4.79516]
[1761652129929,0.62380962,4116.1,4116.0,6.12726]
[1761652130426,1.31900962,4116.1,4116.0,6.05496]
[1761652130725,1.80440962,4116.1,4116.0,5.98216]
[1761652130922,1.31900962,4116.1,4116.0,5.98216]
[1761652131228,1.31900962,4116.1,4116.0,2.15696]
[1761652131627,1.80440962,4116.1,4116.0,2.08416]
[1761652133127,0.62380962,4116.1,4116.0,2.22926]
[1761652133828,1.30938122,4116.8,4116.7,2.08408]
[1761652133829,0.6952,4116.8,4116.7,2.08408]
[1761652134331,1.1806,4116.8,4116.7,2.15688]
[1761652134523,1.1806,4116.8,4116.7,2.08408]
[1761652134919,1.6697,4116.8,4116.7,2.08408]
[1761652137533,1.6697,4116.8,4116.7,1.38908]
[1761652137734,1.6697,4116.6,4116.5,0.4373]
[1761652138033,1.6697,4116.6,4116.5,0.8971]
[1761652139534,0.00213628,4116.9,4116.0,1.6468]
[1761652139535,1.6697,4116.1,4116.0,1.6468]
[1761652140428,1.6697,4116.1,4116.0,2.08416]
[1761652140935,1.6697,4116.1,4116.0,1.38916]
[1761652143234,1.2442,4116.5,4116.4,2.08411]
[1761652143531,1.6815,4116.5,4116.4,0.43731]
[1761652144329,2.3767,4116.5,4116.4,0.43731]
[1761652145134,1.9394,4116.5,4116.4,0.43731]
[1761652145435,2.3767,4116.5,4116.4,0.43731]
[1761652145934,1.5471,4116.3,4116.2,0.87363]
[1761652146235,2.15455273,4116.3,4116.2,0.87363]
[1761652147333,2.22735273,4116.3,4116.2,0.43733]
[1761652147530,2.15455273,4116.3,4116.2,0.43733]
[1761652149527,2.59187273,4116.3,4116.2,0.43733]
[1761652149729,2.15455273,4116.3,4116.2,0.43733]
[1761652150133,2.15455273,4116.3,4116.2,0.87363]
[1761652151429,1.528,4115.9,4115.8,0.4309]
[1761652151628,1.528,4115.9,4115.8,0.86828]
[1761652152133,2.13527736,4115.9,4115.8,0.86828]
[1761652152535,2.57264736,4115.9,4115.8,0.86828]
[1761652152732,2.57264736,4115.9,4115.4,0.6185]
[1761652152935,0.2461,4116.0,4115.4,1.29712]
[1761652152936,1.7741,4115.5,4115.4,1.29712]
[1761652153332,0.8662,4115.2,4115.1,0.86835]
[1761652153637,1.528,4115.2,4115.1,0.86835]
[1761652153826,1.528,4115.2,4115.1,0.43745]
[1761652154032,1.528,4115.2,4115.1,0.86835]
[1761652154231,1.528,4115.2,4115.1,1.91565]
[1761652154430,0.6875,4115.5,4115.4,1.91562]
[1761652154638,1.71894781,4115.5,4115.4,1.29712]
[1761652154949,2.38074781,4115.5,4115.4,1.29712]
[1761652155532,2.38074781,4115.5,4115.4,0.86832]
[1761652155839,2.81815781,4115.5,4115.4,0.86832]
[1761652156341,2.38074781,4115.5,4115.4,0.86832]
[1761652157235,2.81815781,4115.5,4115.4,0.4309]
[1761652157435,2.81815781,4115.5,4115.4,0.43742]
[1761652157843,2.38074781,4115.5,4115.4,0.43742]
[1761652158449,2.81815781,4115.5,4115.4,0.43742]
[1761652158736,0.4414,4115.2,4115.1,0.86834]
[1761652158944,1.528,4115.2,4115.1,0.86834]
[1761652159634,1.96545,4115.1,4115.0,250.0]
[1761652159839,2.57121245,4115.1,4115.0,250.0]
[1761652160240,1.96545,4115.1,4115.0,250.0]
[1761652160839,1.96545,4115.1,4115.0,250.43746]
[1761652161449,1.528,4115.1,4115.0,250.43746]
[1761652161749,1.96545,4115.1,4115.0,250.0]
[1761652163540,0.6618,4115.1,4115.0,251.05596]
[1761652163936,1.96545,4115.1,4115.0,251.05596]
[1761652164140,1.96545,4115.1,4115.0,250.6185]
[1761652164342,1.96545,4115.1,4115.0,250.0]
[1761652166354,2.03825,4115.1,4115.0,250.0]
[1761652166646,2.63968957,4115.1,4115.0,250.0]
[1761652168848,2.56688957,4115.1,4115.0,250.0]
[1761652170449,2.14208957,4115.1,4115.0,250.6185]
[1761652170653,2.56688957,4115.1,4115.0,250.6185]
[1761652170852,2.56688957,4115.1,4115.0,250.0]
[1761652171753,2.56688957,4115.1,4115.0,250.6185]
[1761652172049,2.14208957,4115.1,4115.0,251.05596]
[1761652172354,1.26323957,4115.1,4115.0,251.05596]
[1761652172752,1.26323957,4115.1,4115.0,250.6185]
[1761652172753,2.14208957,4115.1,4115.0,250.6185]
[1761652173052,2.56688957,4115.1,4115.0,251.05596]
[1761652174044,2.56688957,4115.1,4115.0,250.0]
[1761652175057,2.56688957,4115.1,4115.0,250.43746]
[1761652175349,2.56688957,4115.1,4115.0,251.05426]
[1761652175550,1.70068957,4115.1,4115.0,251.05426]
[1761652175751,2.09558957,4115.1,4115.0,251.05426]
[1761652176055,1.65813957,4115.1,4115.0,251.05426]
[1761652176453,2.09343957,4115.1,4115.0,250.43746]
[1761652176955,2.09343957,4115.1,4115.0,251.05426]
[1761652177458,2.53088957,4115.1,4115.0,251.05426]
[1761652178256,1.65813957,4115.1,4115.0,251.05426]
[1761652178757,1.33951,4116.0,4115.5,0.4374]
[1761652178758,0.4374,4115.6,4115.5,0.4374]
[1761652178955,0.9553,4115.8,4115.7,1.4134]
[1761652179257,2.42972443,4115.8,4115.7,0.7966]
[1761652179659,2.42972443,4115.8,4115.7,0.386]
[1761652179850,1.82799,4115.7,4115.6,0.4374]
[1761652180048,2.42973443,4115.7,4115.6,1.8508]
[1761652180255,0.60174443,4115.7,4115.6,1.8508]
[1761652180460,0.9553,4115.7,4115.6,1.8508]
[1761652180758,1.55704443,4115.7,4115.6,1.8508]
[1761652180952,2.42973443,4115.7,4115.6,0.7966]
[1761652181353,1.99234443,4115.7,4115.6,0.7966]
[1761652181553,1.99234443,4115.7,4115.6,1.4134]
[1761652181752,2.42973443,4115.7,4115.6,0.386]
[1761652182857,1.99234443,4115.7,4115.6,0.8234]
[1761652183158,1.16214443,4115.7,4115.6,1.8508]
[1761652183559,0.60174443,4115.7,4115.6,1.9236]
[1761652183760,1.62597,4116.0,4115.9,1.4134]
[1761652183953,2.2283028,4116.0,4115.9,1.4134]
[1761652184159,2.2283028,4116.0,4115.9,1.85077]
[1761652184964,2.6636028,4116.0,4115.9,0.7966]
[1761652185165,2.6636028,4116.0,4115.9,0.386]
[1761652185969,1.3906,4115.7,4115.6,0.7966]
[1761652186158,1.9929328,4115.7,4115.6,0.7966]
[1761652186856,1.9929328,4115.7,4115.6,1.8508]
[1761652187466,1.5576328,4115.7,4115.6,1.8508]
[1761652193174,1.9950228,4115.7,4115.6,1.8508]
[1761652193767,2.4303228,4115.7,4115.6,1.8508]
[1761652194072,1.9929328,4115.7,4115.6,1.8508]
[1761652195273,2.4303228,4115.7,4115.6,1.234]
[1761652195468,2.4303228,4115.7,4115.6,0.7966]
[1761652196368,0.5604,4115.4,4115.3,0.43743]
[1761652196570,1.82802,4115.4,4115.3,0.386]
[1761652196776,2.42842231,4115.4,4115.3,0.386]
[1761652197376,2.42842231,4115.4,4115.3,0.82343]
[1761652198478,1.99100231,4115.4,4115.3,0.82343]
[1761652198877,1.99100231,4115.4,4115.3,1.85083]
[1761652199473,0.60040231,4115.4,4115.3,1.85083]
[1761652199668,1.55570231,4115.4,4115.3,1.85083]
[1761652200993,1.99312231,4115.4,4115.3,1.85083]
[1761652201192,1.99100231,4115.4,4115.3,1.23403]
[1761652201498,1.99100231,4115.4,4115.3,1.85083]
[1761652201990,1.55570231,4115.4,4115.3,1.85083]
[1761652205089,1.16080231,4115.4,4115.3,1.92363]
[1761652205288,1.90910231,4115.4,4115.3,1.23403]
[1761652206195,1.16080231,4115.4,4115.3,1.73283]
[1761652206891,0.60040231,4115.4,4115.3,1.80563]
[1761652207087,0.60040231,4115.4,4115.3,1.73283]
[1761652207589,1.10650231,4115.4,4115.3,1.73283]
[1761652207991,1.85480231,4115.4,4115.3,0.7966]
[1761652208595,1.85480231,4115.4,4115.3,1.73283]
[1761652209189,2.29222231,4115.4,4115.3,1.73283]
[1761652209494,1.85480231,4115.4,4115.3,1.73283]
[1761652210596,2.29222231,4115.4,4115.3,1.73283]
[1761652211599,2.29222231,4115.4,4115.3,1.23403]
[1761652212296,2.29222231,4115.4,4115.3,0.43743]
[1761652212899,2.29222231,4115.4,4115.3,0.78003]
[1761652214000,2.29222231,4115.4,4115.3,1.12033]
[1761652214799,1.85480231,4115.4,4115.3,1.12033]
[1761652214990,0.60040231,4115.4,4115.3,1.59273]
[1761652215187,1.47670231,4115.4,4115.3,1.59273]
[1761652215392,2.26062231,4115.4,4115.3,0.78003]
[1761652216100,1.82320231,4115.4,4115.3,0.78003]
[1761652216302,1.82320231,4115.4,4115.3,1.12033]
[1761652217997,1.47670231,4115.4,4115.3,1.59273]
[1761652218301,1.13350231,4115.4,4115.3,1.59273]
[1761652219797,1.91412231,4115.4,4115.3,1.59273]
[1761652220100,2.26062231,4115.4,4115.3,0.78003]
[1761652220300,2.26062231,4115.4,4115.3,0.43743]
[1761652220500,2.26062231,4115.4,4115.3,0.78003]
[1761652221004,1.82320231,4115.4,4115.3,0.78003]
[1761652221400,1.82320231,4115.4,4115.3,1.12033]
[1761652221596,1.82320231,4115.4,4115.3,1.59273]
[1761652224798,1.47670231,4115.4,4115.3,1.59273]
[1761652225000,2.26062231,4115.4,4115.3,1.12033]
[1761652225298,1.82320231,4115.4,4115.3,1.12033]
[1761652225604,1.82320231,4115.4,4115.3,1.59273]
[1761652225800,1.47670231,4115.4,4115.3,1.66553]
[1761652225998,1.13350231,4115.4,4115.3,1.66553]
[1761652226506,0.60040231,4115.4,4115.3,1.66553]
[1761652226805,1.13350231,4115.4,4115.3,1.66553]
[1761652227010,1.13350231,4115.4,4115.3,1.59273]
[1761652227199,1.47670231,4115.4,4115.3,1.59273]
[1761652229610,2.26062231,4115.4,4115.3,0.6829]
[1761652230209,1.2228,4115.2,4115.1,0.3426]
[1761652230406,1.82320231,4115.2,4115.1,0.3426]
[1761652230608,1.82320231,4115.2,4115.1,0.78005]
[1761652231107,2.26064231,4115.2,4115.1,0.78005]
[1761652231405,2.26064231,4115.2,4115.1,0.3426]
[1761652231608,2.26064231,4115.2,4115.0,250.0]
[1761652231609,1.66025,4115.1,4115.0,250.43745]
[1761652231809,1.82320231,4115.1,4115.0,250.43745]
[1761652232610,1.47670231,4115.1,4115.0,250.90985]
[1761652235310,1.47670231,4115.1,4115.0,250.43745]
[1761652235311,1.82320231,4115.1,4115.0,250.43745]
[1761652235611,2.26065231,4115.1,4115.0,250.0]
[1761652236507,1.82320231,4115.1,4115.0,250.43746]
[1761652237009,0.60040231,4115.1,4115.0,250.83016]
[1761652237411,1.08480231,4115.1,4115.0,250.83016]
[1761652237613,1.41090231,4115.1,4115.0,250.83016]
[1761652238906,1.08480231,4115.1,4115.0,249.83016]
[1761652239508,0.60040231,4115.1,4115.0,249.90296]
[1761652239706,0.4844,4115.5,4115.4,1.48932]
[1761652240117,1.94737746,4115.5,4115.4,1.09662]
[1761652240413,1.94737746,4115.5,4115.4,1.48932]
[1761652240610,1.94737746,4115.5,4115.4,1.09662]
[1761652240808,0.8105,4115.4,4115.1,0.3927]
[1761652241013,1.1661,4115.4,4115.3,0.6592]
[1761652241205,1.74892659,4115.4,4115.3,0.6592]
[1761652241411,1.74892659,4115.4,4115.3,1.0519]
[1761652241817,1.74892659,4115.4,4115.3,1.48933]
[1761652242411,1.74892064,4115.4,4115.3,1.48933]
[1761652244419,0.58282064,4115.4,4115.3,1.48933]
[1761652244621,0.58282064,4115.4,4115.3,1.56213]
[1761652244917,1.06722064,4115.4,4115.3,1.56213]
[1761652245319,0.58282064,4115.4,4115.3,1.56213]
[1761652245514,1.35732081,4116.1,4116.0,1.48926]
[1761652245714,0.3261,4116.4,4116.3,1.48922]
[1761652246316,0.8105,4116.4,4116.3,1.48922]
[1761652246620,0.4844,4116.8,4116.7,1.0519]
[1761652246921,0.8105,4116.8,4116.7,1.48918]
[1761652255329,1.60337,4116.8,4116.7,1.09648]
[1761652256233,0.43728,4116.7,4116.5,0.4373]
[1761652256431,1.1661,4116.6,4116.5,0.4373]
[1761652256726,1.1661,4116.6,4116.5,0.742]
[1761652256921,1.1661,4116.6,4116.5,1.4892]
[1761652257721,0.8105,4116.6,4116.5,1.4892]
[1761652258324,0.8105,4116.6,4116.5,1.562]
[1761652258826,0.00213628,4116.9,4116.5,1.562]
[1761652259132,0.00213628,4116.9,4116.2,1.09334]
[1761652259133,0.00213628,4116.9,4116.8,0.43727]
[1761652259431,0.00213628,4116.9,4116.8,1.56197]
[1761652259928,0.48653628,4116.9,4116.8,1.56197]
[1761652260525,0.81263628,4116.9,4116.8,1.48917]
[1761652261426,0.48653628,4116.9,4116.8,1.48917]
[1761652261725,0.00213628,4116.9,4116.8,1.56197]
[1761652271736,0.4736,4117.9,4117.8,1.40537]
[1761652271942,0.8062,4118.5,4118.4,0.7544]
[1761652272346,1.71689,4118.5,4118.4,0.7544]
[1761652272644,1.28152353,4118.5,4118.4,0.75748212]
[1761652272847,1.71861353,4118.5,4118.4,0.75748212]
[1761652273042,1.28152353,4118.5,4118.4,0.75748212]
[1761652273346,1.71861353,4118.5,4118.4,0.00308212]
[1761652273741,2.35858391,4118.5,4118.4,0.00308212]
[1761652275348,0.4928,4117.0,4116.9,1.05606]
[1761652275646,0.4928,4117.0,4116.9,1.40546]
[1761652276046,0.9664,4117.0,4116.9,1.40546]
[1761652276249,0.9664,4117.0,4116.9,1.4071668]
[1761652280857,1.2704,4117.0,4116.9,1.0577668]
[1761652282051,1.2704,4117.0,4116.9,1.4071668]
[1761652283650,0.9664,4117.0,4116.9,1.4071668]
[1761652283951,0.6571,4117.0,4116.9,1.4071668]
[1761652284255,0.4736,4117.0,4116.9,1.4071668]
[1761652284455,0.7968,4117.5,4117.4,1.05601]
[1761652284656,1.234,4117.5,4117.4,1.05601]
[1761652284852,1.2704,4117.5,4117.4,1.05601]
[1761652285554,1.2704,4117.5,4117.4,1.40541]
[1761652287556,1.2704,4117.5,4117.4,1.05601]
[1761652288854,1.2704,4117.5,4117.4,0.75451]
[1761652290159,1.2704,4117.5,4117.4,0.43721]
[1761652290362,1.2704,4117.5,4117.4,0.75451]
[1761652292054,1.2704,4117.5,4117.4,1.40541]
[1761652293164,1.2704,4117.5,4117.4,1.05601]
[1761652293864,1.2704,4117.5,4117.4,1.40541]
[1761652294764,0.7157,4117.9,4117.8,0.2758]
[1761652294964,0.4192,4118.2,4118.1,0.5516]
[1761652295160,0.7157,4118.2,4118.1,0.8274]
[1761652295354,1.017,4118.2,4118.1,0.3486]
[1761652295657,1.017,4118.2,4118.1,0.71293]
[1761652297766,1.017,4118.2,4118.1,0.98873]
[1761652299262,0.85634,4118.1,4117.9,0.43715]
[1761652299468,1.1897,4118.0,4117.9,0.43715]
[1761652300165,1.1897,4118.0,4117.9,0.71295]
[1761652300367,1.1897,4118.0,4117.9,0.98875]
[1761652302665,1.1897,4118.0,4117.9,0.71295]
[1761652303771,1.1897,4118.0,4117.9,0.98875]
[1761652309169,0.8884,4117.5,4117.4,1.26461]
[1761652313972,0.5919,4117.5,4117.4,1.26461]
[1761652314179,0.4192,4117.5,4117.4,1.33741]
[1761652314580,0.4192,4117.5,4117.4,1.26461]
[1761652320887,1.1897,4117.5,4117.4,0.43721]
[1761652321588,1.017,4117.4,4117.3,0.43722]
[1761652322378,0.1727,4117.5,4116.9,3.8997068]
[1761652322379,1.1897,4117.0,4116.9,0.9905568]
[1761652322583,1.1897,4117.0,4116.9,0.4389568]
[1761652323799,1.1897,4117.0,4116.9,0.9905568]
[1761652324486,1.1897,4117.0,4116.9,1.1818568]
[1761652326092,1.1897,4117.0,4116.9,0.9905568]
[1761652333799,0.4192,4117.0,4116.9,1.1706568]
[1761652333994,0.4312,4117.5,4117.4,0.97751]
[1761652334396,0.56,4117.5,4117.4,1.05031]
[1761652334699,0.3873,4117.5,4117.4,1.05031]
[1761652338499,0.5406,4117.5,4117.4,0.97751]
[1761652338898,0.5406,4117.5,4117.4,1.05031]
[1761652339498,0.3873,4117.5,4117.4,1.05031]
[1761652339703,0.4312,4118.0,4117.9,0.97746]
[1761652340103,0.8185,4118.0,4117.9,0.97746]
[1761652340309,0.8185,4118.0,4117.9,0.79736]
[1761652340899,1.0769,4118.0,4117.9,0.79736]
[1761652342604,0.56,4118.0,4117.9,0.97746]
[1761652342805,0.8185,4118.0,4117.9,0.79736]
[1761652343007,0.8185,4118.0,4117.9,0.9954456]
[1761652343409,0.3873,4118.0,4117.9,1.2483456]
[1761652343609,0.45312353,4118.5,4118.4,0.9774]
[1761652343910,0.71152353,4118.5,4118.4,0.7973]
[1761652344110,1.09882353,4118.5,4118.4,0.7973]
[1761652345703,0.9042,4118.4,4118.3,0.43711]
[1761652345900,0.3873,4118.3,4118.2,0.43712]
[1761652346106,0.9042,4118.3,4118.2,0.43712]
[1761652351507,0.9042,4117.9,4117.8,4.51527]
[1761652352006,0.9042,4117.9,4117.8,4.69537]
[1761652352708,0.9042,4117.9,4117.8,4.33517]
[1761652353310,0.9042,4117.9,4117.8,4.51527]
[1761652353506,0.9042,4117.6,4117.5,0.1801]
[1761652353713,0.6458,4117.1,4117.0,0.79745]
[1761652354309,0.6458,4117.1,4117.0,0.97755]
[1761652354713,0.6458,4117.1,4117.0,0.79745]
[1761652354910,0.8887,4117.1,4117.0,0.79745]
[1761652358609,1.39235,4117.0,4116.9,0.0017068]
[1761652359419,0.9551,4116.0,4115.9,0.55107]
[1761652359623,0.8149,4115.6,4115.5,0.5511]
[1761652360522,0.81778659,4115.6,4115.5,0.55420615]
[1761652360820,0.81778659,4115.6,4115.5,0.66790615]
[1761652361113,0.3446,4115.9,4115.8,0.43738]
[1761652361420,0.2274,4116.5,4116.4,1.27631]
[1761652361623,0.4703,4116.5,4116.4,1.27631]
[1761652361828,0.6105,4116.5,4116.2,0.43733]
[1761652362114,0.61350198,4116.5,4116.1,0.65805]
[1761652363018,0.61350198,4116.5,4116.2,0.43734]
[1761652363215,0.4703,4116.3,4116.2,0.43734]
[1761652363421,0.8149,4116.3,4116.2,0.43734]
[1761652364619,0.8149,4116.3,4116.2,0.65804]
[1761652365322,0.8149,4116.3,4116.2,1.27634]
[1761652372334,0.572,4116.3,4116.2,1.27634]
[1761652372532,0.3446,4116.3,4116.2,1.34914]
[1761652372731,0.57500198,4116.5,4116.4,1.27631]
[1761652373330,0.81790198,4116.5,4116.4,1.27631]
[1761652375427,0.95810198,4116.5,4116.4,1.27631]
[1761652375629,0.4703,4116.1,4116.0,1.27636]
[1761652375934,0.8149,4116.1,4116.0,1.27636]
[1761652377845,0.61350198,4116.5,4116.4,0.43731]
[1761652378046,0.47330198,4116.5,4116.4,1.27631]
[1761652378245,0.47330198,4116.5,4116.4,0.839]
[1761652378452,0.95810198,4116.5,4116.4,0.839]
[1761652378839,0.95810198,4116.5,4116.4,1.27631]
[1761652380752,0.95810198,4116.5,4116.4,0.839]
[1761652380962,0.95810198,4116.5,4116.1,0.2207]
[1761652380963,0.8149,4116.2,4116.1,0.2207]
[1761652381241,0.8149,4116.2,4116.1,0.65805]
[1761652381444,0.4703,4116.2,4116.0,0.43736]
[1761652381749,0.8149,4116.1,4116.0,1.02436]
[1761652382147,0.8149,4116.1,4116.0,0.2207]
[1761652382347,0.4848,4116.0,4115.9,0.43737]